fUSD/lending_fUSD_20250507
["ID","MTS","AMOUNT","RATE_DAILY","PERIOD"]
[360230941,1746640246233,-1370.25,0.00019981,2]
[360230942,1746640246243,-450.0,0.00019981,2]
[360230943,1746640246254,-450.0,0.00019981,2]
[360230944,1746640246264,-227.91361719,0.00019981,2]
[360230945,1746640246275,-450.0,0.00019981,2]
[360230946,1746640246285,-454.37,0.00019981,2]
[360230947,1746640246294,-1042.25,0.00019981,2]
[360230948,1746640246305,-3315.45,0.00019981,2]
[360230949,1746640246315,-450.0,0.00019981,2]
[360230950,1746640246325,-1284.04,0.00019981,2]
[360230951,1746640246335,-276.15,0.00019981,2]
[360230952,1746640246346,-928.6,0.00019981,2]
[360230954,1746640246357,-450.0,0.00019981,2]
[360230956,1746640246367,-450.0,0.00019981,2]
[360230957,1746640246376,-450.0,0.00019981,2]
[360230958,1746640246385,-450.0,0.00019981,2]
[360230959,1746640246396,-450.0,0.00019981,2]
[360230960,1746640246406,-802.68,0.00019981,2]
[360230961,1746640246416,-450.0,0.00019981,2]
[360230962,1746640246426,-17582.78,0.00019981,2]
[360230963,1746640246437,-515.92768496,0.00019981,2]
[360230964,1746640246448,-450.0,0.00019981,2]
[360230966,1746640246458,-450.0,0.00019981,2]
[360230968,1746640246468,-1122.11,0.00019981,2]
[360230970,1746640246478,-430.11,0.00019981,2]
[360230972,1746640246488,-450.0,0.00019981,2]
[360230974,1746640246498,-5363.79,0.00019981,2]
[360230976,1746640246507,-450.0,0.00019981,2]
[360230978,1746640246518,-450.0,0.00019981,2]
[360230980,1746640246527,-450.0,0.00019981,2]
[360230982,1746640246537,-2572.63,0.00019981,2]
[360230984,1746640246547,-151.0,0.00019982,2]
[360230987,1746640246557,-450.0,0.00019982,2]
[360230989,1746640246567,-580.27,0.00019982,2]
[360230991,1746640246577,-450.0,0.00019982,2]
[360230993,1746640246587,-159.41,0.00019982,2]
[360230995,1746640246596,-274.33482507,0.00019982,2]
[360230997,1746640246606,-450.0,0.00019982,2]
[360230999,1746640246616,-450.0,0.00019982,2]
[360231001,1746640246626,-450.0,0.00019982,2]
[360231003,1746640246637,-450.0,0.00019982,2]
[360231005,1746640246651,-450.0,0.00019982,2]
[360231007,1746640246661,-495.24364102,0.00019982,2]
[360231009,1746640246671,-450.0,0.00019982,2]
[360231012,1746640246681,-450.0,0.00019982,2]
[360231013,1746640246692,-450.0,0.00019982,2]
[360231016,1746640246702,-450.0,0.00019982,2]
[360231018,1746640246712,-450.0,0.00019982,2]
[360231020,1746640246723,-450.0,0.00019982,2]
[360231021,1746640246732,-450.0,0.00019982,2]
[360231022,1746640246743,-922.38,0.00019982,2]
[360231023,1746640246754,-450.0,0.00019982,2]
[360231024,1746640246764,-576.54,0.00019982,2]
[360231025,1746640246774,-601.69,0.00019982,2]
[360231026,1746640246784,-3052.68,0.00019982,2]
[360231027,1746640246795,-151.0,0.00019983,2]
[360231028,1746640246805,-580.27,0.00019983,2]
[360231029,1746640246815,-450.0,0.00019983,2]
[360231030,1746640246825,-500.0,0.00019983,2]
[360231031,1746640246835,-480.74,0.00019983,2]
[360231032,1746640246846,-450.0,0.00019983,2]
[360231033,1746640246856,-450.0,0.00019983,2]
[360231034,1746640246867,-450.0,0.00019983,2]
[360231035,1746640246877,-550.0,0.00019983,2]
[360231036,1746640246887,-450.0,0.00019983,2]
[360231037,1746640246897,-400.87378546,0.00019983,2]
[360231038,1746640246907,-425.5034705,0.00019983,2]
[360231039,1746640246917,-922.38,0.00019983,2]
[360231040,1746640246927,-450.0,0.00019983,2]
[360231041,1746640246936,-601.69,0.00019983,2]
[360231042,1746640246948,-556.16468391,0.00019983,2]
[360231043,1746640247221,-2496.51531609,0.00019983,2]
[360231044,1746640247231,-450.0,0.00019983,2]
[360231045,1746640247242,-500.0,0.00019983,2]
[360231046,1746640247252,-450.0,0.00019983,2]
[360231047,1746640247262,-450.0,0.00019983,2]
[360231048,1746640247272,-450.0,0.00019983,2]
[360231049,1746640247282,-450.0,0.00019983,2]
[360231050,1746640247292,-1160.6,0.00019983,2]
[360231051,1746640247302,-450.0,0.00019983,2]
[360231052,1746640247312,-450.0,0.00019983,2]
[360231053,1746640247322,-450.0,0.00019983,2]
[360231054,1746640247333,-471.51,0.00019983,2]
[360231055,1746640247343,-412.9,0.00019983,2]
[360231056,1746640247357,-528.63,0.00019983,2]
[360231057,1746640247367,-1425.83,0.00019983,2]
[360231058,1746640247378,-450.0,0.00019983,2]
[360231059,1746640247388,-478.67,0.00019983,2]
[360231060,1746640247401,-450.0,0.00019983,2]
[360231061,1746640247411,-12569.66,0.00019983,2]
[360231062,1746640247423,-151.0,0.00019984,2]
[360231063,1746640247434,-580.27,0.00019984,2]
[360231064,1746640247443,-443.63,0.00019984,2]
[360231065,1746640247454,-365.22,0.00019984,2]
[360231066,1746640247465,-450.0,0.00019984,2]
[360231067,1746640247475,-165.0739918,0.00019984,2]
[360231068,1746640247543,-450.0,0.00019984,2]
[360231069,1746640247553,-450.0,0.00019984,2]
[360231070,1746640247563,-922.38,0.00019984,2]
[360231071,1746640247573,-450.0,0.00019984,2]
[360231072,1746640247583,-601.69,0.00019984,2]
[360231073,1746640247592,-590.14661198,0.00019984,2]
[360231074,1746640247602,-796.82551188,0.00019984,2]
[360231075,1746640247614,-1898.86470211,0.00019984,2]
[360231076,1746640247627,-356.98978601,0.00019984,2]
[360231077,1746640247637,-178.52639742,0.00019984,2]
[360231078,1746640247647,-745.9,0.00019984,2]
[360231079,1746640247657,-450.0,0.00019984,2]
[360231080,1746640247667,-450.0,0.00019984,2]
[360231081,1746640247678,-728.91,0.00019984,2]
[360231082,1746640247687,-450.0,0.00019984,2]
[360231083,1746640247699,-450.0,0.00019984,2]
[360231084,1746640247710,-450.0,0.00019984,2]
[360231085,1746640247719,-450.0,0.00019984,2]
[360231086,1746640247730,-450.0,0.00019984,2]
[360231087,1746640247740,-1370.25,0.00019984,2]
[360231088,1746640247750,-450.0,0.00019984,2]
[360231089,1746640247760,-450.0,0.00019984,2]
[360231090,1746640247770,-375.84,0.00019984,2]
[360231091,1746640247780,-450.0,0.00019984,2]
[360231092,1746640247790,-450.0,0.00019984,2]
[360231093,1746640247800,-296.92,0.00019984,2]
[360231094,1746640247811,-1042.25,0.00019984,2]
[360231095,1746640247819,-223.98,0.00019984,2]
[360231096,1746640247828,-450.0,0.00019984,2]
[360231097,1746640247838,-500.0,0.00019984,2]
[360231098,1746640247849,-3315.45,0.00019984,2]
[360231099,1746640247858,-1284.04,0.00019984,2]
[360231100,1746640247868,-450.0,0.00019984,2]
[360231101,1746640247878,-450.0,0.00019984,2]
[360231102,1746640247888,-187.97,0.00019984,2]
[360231103,1746640247898,-928.6,0.00019984,2]
[360231104,1746640247907,-450.0,0.00019984,2]
[360231105,1746640247918,-450.0,0.00019984,2]
[360231106,1746640247928,-318.13,0.00019984,2]
[360231107,1746640247940,-333.76,0.00019984,2]
[360231108,1746640247953,-450.0,0.00019984,2]
[360231109,1746640247963,-526.24,0.00019984,2]
[360231110,1746640247972,-192.25,0.00019984,2]
[360231111,1746640247982,-253.27,0.00019984,2]
[360231112,1746640247991,-450.0,0.00019984,2]
[360231113,1746640248001,-450.0,0.00019984,2]
[360231114,1746640248010,-802.68,0.00019984,2]
[360231115,1746640248020,-175.93367092,0.00019984,2]
[360231116,1746640248030,-17582.78,0.00019984,2]
[360231117,1746640248040,-1449.14,0.00019984,2]
[360231118,1746640248049,-187.01441021,0.00019984,2]
[360231119,1746640248059,-450.0,0.00019984,2]
[360231120,1746640248069,-1122.11,0.00019984,2]
[360231121,1746640248079,-239.73,0.00019984,2]
[360231122,1746640248089,-450.0,0.00019984,2]
[360231123,1746640248098,-450.0,0.00019984,2]
[360231124,1746640248108,-5363.79,0.00019984,2]
[360231125,1746640248118,-450.0,0.00019984,2]
[360231126,1746640248128,-450.0,0.00019984,2]
[360231127,1746640248138,-319.72,0.00019984,2]
[360231128,1746640248147,-450.0,0.00019984,2]
[360231129,1746640248158,-405.11,0.00019984,2]
[360231130,1746640248168,-426.22,0.00019984,2]
[360231131,1746640248179,-2572.63,0.00019984,2]
[360231132,1746640248188,-184.491076,0.00019985,2]
[360231133,1746640248199,-450.0,0.00019985,2]
[360231134,1746640248208,-450.0,0.00019985,2]
[360231135,1746640248218,-450.0,0.00019985,2]
[360231136,1746640248228,-450.0,0.00019985,2]
[360231137,1746640248237,-450.0,0.00019985,2]
[360231138,1746640248247,-583.88884764,0.00019985,2]
[360231139,1746640248257,-580.27,0.00019985,2]
[360231140,1746640248267,-580.27,0.00019985,2]
[360231141,1746640248278,-580.27,0.00019985,2]
[360231142,1746640248288,-550.0,0.00019985,2]
[360231143,1746640248298,-151.0,0.00019985,2]
[360231144,1746640248308,-151.0,0.00019985,2]
[360231145,1746640248318,-151.0,0.00019985,2]
[360231146,1746640248329,-450.0,0.00019985,2]
[360231147,1746640248339,-450.0,0.00019985,2]
[360231148,1746640248352,-362.98397952,0.00019985,2]
[360231149,1746640248361,-151.0,0.00019985,2]
[360231150,1746640248371,-151.0,0.00019985,2]
[360231151,1746640248381,-151.0,0.00019985,2]
[360231152,1746640248391,-450.0,0.00019985,2]
[360231153,1746640248401,-450.0,0.00019985,2]
[360231154,1746640248410,-450.0,0.00019985,2]
[360231155,1746640248420,-151.0,0.00019985,2]
[360231156,1746640248431,-151.0,0.00019985,2]
[360231157,1746640248442,-151.0,0.00019985,2]
[360231158,1746640248452,-151.0,0.00019985,2]
[360231159,1746640248462,-450.0,0.00019985,2]
[360231160,1746640248472,-450.0,0.00019985,2]
[360231161,1746640248482,-450.0,0.00019985,2]
[360231162,1746640248492,-216.04787,0.00019985,2]
[360231163,1746640248502,-151.0,0.00019985,2]
[360231164,1746640248512,-151.0,0.00019985,2]
[360231165,1746640248522,-151.0,0.00019985,2]
[360231166,1746640248532,-151.0,0.00019985,2]
[360231167,1746640248542,-922.38,0.00019985,2]
[360231168,1746640248551,-922.38,0.00019985,2]
[360231169,1746640248561,-922.38,0.00019985,2]
[360231170,1746640248572,-450.0,0.00019985,2]
[360231171,1746640248582,-450.0,0.00019985,2]
[360231172,1746640248592,-450.0,0.00019985,2]
[360231173,1746640248603,-151.735998,0.00019985,2]
[360231174,1746640248614,-151.0,0.00019985,2]
[360231175,1746640248624,-151.0,0.00019985,2]
[360231176,1746640248634,-181.643892,0.00019985,2]
[360231177,1746640248644,-252.584968,0.00019985,2]
[360231178,1746640248654,-252.584968,0.00019985,2]
[360231179,1746640248664,-151.0,0.00019985,2]
[360231180,1746640248673,-151.0,0.00019985,2]
[360231181,1746640248684,-151.0,0.00019985,2]
[360231182,1746640248694,-151.0,0.00019985,2]
[360231183,1746640248704,-151.0,0.00019985,2]
[360231184,1746640248714,-151.0,0.00019985,2]
[360231185,1746640248724,-151.0,0.00019985,2]
[360231186,1746640248734,-151.0,0.00019985,2]
[360231187,1746640248743,-151.0,0.00019985,2]
[360231188,1746640248753,-601.69,0.00019985,2]
[360231189,1746640248763,-601.69,0.00019985,2]
[360231190,1746640248773,-601.69,0.00019985,2]
[360231191,1746640248784,-151.0,0.00019985,2]
[360231192,1746640248794,-156.768824,0.00019985,2]
[360231193,1746640248804,-153.353412,0.00019985,2]
[360231194,1746640248814,-151.0,0.00019985,2]
[360231195,1746640248824,-265.290808,0.00019985,2]
[360231196,1746640248835,-265.290808,0.00019985,2]
[360231197,1746640248844,-151.0,0.00019985,2]
[360231198,1746640248855,-3052.68,0.00019985,2]
[360231199,1746640248863,-3052.68,0.00019985,2]
[360231200,1746640248873,-3052.68,0.00019985,2]
[360231201,1746640248883,-151.0,0.00019985,2]
[360231202,1746640248893,-151.0,0.00019985,2]
[360231203,1746640248903,-151.0,0.00019985,2]
[360231204,1746640248912,-151.0,0.00019985,2]
[360231205,1746640248922,-151.0,0.00019985,2]
[360231206,1746640248932,-151.0,0.00019985,2]
[360231207,1746640248943,-151.0,0.00019985,2]
[360231208,1746640248953,-450.0,0.00019985,2]
[360231209,1746640248962,-450.0,0.00019985,2]
[360231210,1746640248973,-237.322018,0.00019985,2]
[360231211,1746640248982,-237.322018,0.00019985,2]
[360231212,1746640248992,-745.9,0.00019985,2]
[360231213,1746640249002,-151.0,0.00019985,2]
[360231214,1746640249011,-151.0,0.00019985,2]
[360231215,1746640249021,-151.0,0.00019985,2]
[360231216,1746640249031,-151.286189,0.00019985,2]
[360231217,1746640249040,-450.0,0.00019985,2]
[360231218,1746640249050,-151.0,0.00019985,2]
[360231219,1746640249060,-151.0,0.00019985,2]
[360231220,1746640249070,-151.0,0.00019985,2]
[360231221,1746640249080,-151.0,0.00019985,2]
[360231222,1746640249089,-450.0,0.00019985,2]
[360231223,1746640249100,-1136.0423863,0.00019985,2]
[360231224,1746640249110,-728.91,0.00019985,2]
[360231225,1746640249120,-450.0,0.00019985,2]
[360231226,1746640249130,-151.0,0.00019985,2]
[360231227,1746640249139,-450.0,0.00019985,2]
[360231228,1746640249149,-157.741437,0.00019985,2]
[360231229,1746640249159,-450.0,0.00019985,2]
[360231230,1746640249170,-500.0,0.00019985,2]
[360231231,1746640249180,-500.0,0.00019985,2]
[360231232,1746640249190,-450.0,0.00019985,2]
[360231233,1746640249201,-450.0,0.00019985,2]
[360231234,1746640249211,-450.0,0.00019985,2]
[360231235,1746640249221,-450.0,0.00019985,2]
[360231236,1746640249231,-450.0,0.00019985,2]
[360231237,1746640249241,-227.23,0.00019985,2]
[360231238,1746640249251,-1370.25,0.00019985,2]
[360231239,1746640249261,-450.0,0.00019985,2]
[360231240,1746640249271,-151.381622,0.00019985,2]
[360231241,1746640249281,-450.0,0.00019985,2]
[360231242,1746640249290,-450.0,0.00019985,2]
[360231243,1746640249300,-4811.6694553,0.00019985,2]
[360231244,1746640249309,-450.0,0.00019985,2]
[360231245,1746640249319,-450.0,0.00019985,2]
[360231246,1746640249329,-349.11,0.00019985,2]
[360231247,1746640249340,-450.0,0.00019985,2]
[360231248,1746640249354,-1042.25,0.00019985,2]
[360231249,1746640249364,-581.77,0.00019985,2]
[360231250,1746640249374,-450.0,0.00019985,2]
[360231251,1746640249385,-450.0,0.00019985,2]
[360231252,1746640249396,-1160.6,0.00019985,2]
[360231253,1746640249407,-1160.6,0.00019985,2]
[360231254,1746640249417,-450.0,0.00019985,2]
[360231255,1746640249428,-450.0,0.00019985,2]
[360231256,1746640249439,-282.56,0.00019985,2]
[360231257,1746640249450,-3315.45,0.00019985,2]
[360231258,1746640249461,-151.0,0.00019985,2]
[360231259,1746640249470,-1284.04,0.00019985,2]
[360231260,1746640249481,-151.0,0.00019985,2]
[360231261,1746640249491,-450.0,0.00019985,2]
[360231262,1746640249501,-318.09,0.00019985,2]
[360231263,1746640249510,-90117.5333302,0.00019985,2]
[360231264,1746640249520,-450.0,0.00019985,2]
[360231265,1746640249530,-450.0,0.00019985,2]
[360231266,1746640249541,-928.6,0.00019985,2]
[360231267,1746640249551,-450.0,0.00019985,2]
[360231268,1746640249562,-450.0,0.00019985,2]
[360231269,1746640249571,-151.0,0.00019985,2]
[360231270,1746640249582,-190.11,0.00019985,2]
[360231271,1746640249592,-450.0,0.00019985,2]
[360231272,1746640249603,-499.4,0.00019985,2]
[360231273,1746640249614,-450.0,0.00019985,2]
[360231274,1746640249624,-450.0,0.00019985,2]
[360231275,1746640249635,-533.48,0.00019985,2]
[360231276,1746640249645,-450.0,0.00019985,2]
[360231277,1746640249656,-563.48,0.00019985,2]
[360231278,1746640249665,-802.68,0.00019985,2]
[360231279,1746640249675,-17582.78,0.00019985,2]
[360231280,1746640249684,-1449.14,0.00019985,2]
[360231281,1746640249696,-1449.14,0.00019985,2]
[360231282,1746640249708,-1425.83,0.00019985,2]
[360231283,1746640249718,-1425.83,0.00019985,2]
[360231284,1746640249729,-369.499338,0.00019985,2]
[360231285,1746640249739,-450.0,0.00019985,2]
[360231286,1746640249750,-369.499338,0.00019985,2]
[360231287,1746640249760,-1122.11,0.00019985,2]
[360231288,1746640249771,-151.0,0.00019985,2]
[360231289,1746640249781,-450.0,0.00019985,2]
[360231290,1746640249791,-154.7,0.00019985,2]
[360231291,1746640249801,-450.0,0.00019985,2]
[360231292,1746640249812,-450.0,0.00019985,2]
[360231293,1746640249822,-450.0,0.00019985,2]
[360231294,1746640249833,-5363.79,0.00019985,2]
[360231295,1746640249843,-450.0,0.00019985,2]
[360231296,1746640249853,-207.27,0.00019985,2]
[360231297,1746640249863,-450.0,0.00019985,2]
[360231298,1746640249874,-450.0,0.00019985,2]
[360231299,1746640249884,-450.0,0.00019985,2]
[360231300,1746640249895,-12569.66,0.00019985,2]
[360231301,1746640249904,-12569.66,0.00019985,2]
[360231302,1746640249915,-450.0,0.00019985,2]
[360231303,1746640249924,-151.0,0.00019985,2]
[360231304,1746640249934,-151.0,0.00019985,2]
[360231305,1746640249946,-151.0,0.00019985,2]
[360231306,1746640249956,-2572.63,0.00019985,2]
[360231307,1746640249966,-1300.0,0.00019985,2]
[360231308,1746640249976,-798.0,0.00019985,2]
[360231309,1746640249987,-625.0,0.00019985,2]
[360231310,1746640249997,-1451.0,0.00019985,2]
[360231311,1746640250007,-582.0,0.00019985,2]
[360231312,1746640250018,-855.615,0.00019985,2]
[360231313,1746640250028,-914.0,0.00019985,2]
[360231314,1746640250039,-2.54147666,0.00019985,2]
[360231315,1746640250055,-548.45852334,0.00019985,2]
[360231316,1746640250066,-878.0,0.00019985,2]
[360231317,1746640250077,-198.0,0.00019985,2]
[360231318,1746640250088,-150.0,0.00019985,2]
[360231319,1746640250098,-2258.25281718,0.00019985,2]
[360231320,1746640250111,-1000.0,0.00019985,2]
[360231321,1746640250123,-2308.2098782,0.00019985,2]
[360231322,1746640250136,-367.53730462,0.00019985,2]
[360231323,1746640250147,-341.186,0.00019985,2]
[360231324,1746640250158,-962.0,0.00019986,2]
[360231325,1746640250168,-151.0,0.00019986,2]
[360231326,1746640250179,-151.0,0.00019986,2]
[360231327,1746640250189,-151.0,0.00019986,2]
[360231328,1746640250201,-151.0,0.00019986,2]
[360231329,1746640250211,-151.0,0.00019986,2]
[360231330,1746640250221,-151.0,0.00019986,2]
[360231331,1746640250232,-151.0,0.00019986,2]
[360231332,1746640250241,-151.0,0.00019986,2]
[360231333,1746640250252,-151.0,0.00019986,2]
[360231334,1746640250264,-151.0,0.00019986,2]
[360231335,1746640250275,-151.0,0.00019986,2]
[360231336,1746640250286,-151.0,0.00019986,2]
[360231337,1746640250295,-151.0,0.00019986,2]
[360231338,1746640250306,-151.0,0.00019986,2]
[360231339,1746640250317,-151.0,0.00019986,2]
[360231340,1746640250327,-151.0,0.00019986,2]
[360231341,1746640250339,-151.0,0.00019986,2]
[360231342,1746640250351,-151.0,0.00019986,2]
[360231343,1746640250362,-151.0,0.00019986,2]
[360231344,1746640250372,-151.0,0.00019986,2]
[360231345,1746640250382,-280.006792,0.00019986,2]
[360231346,1746640250394,-151.0,0.00019986,2]
[360231347,1746640250404,-151.0,0.00019986,2]
[360231348,1746640250415,-151.0,0.00019986,2]
[360231349,1746640250427,-151.0,0.00019986,2]
[360231350,1746640250437,-151.0,0.00019986,2]
[360231351,1746640250447,-193.762318,0.00019986,2]
[360231352,1746640250457,-151.0,0.00019986,2]
[360231353,1746640250467,-96.81724358,0.00019986,2]
[360231354,1746640250480,-155.76772442,0.00019986,2]
[360231355,1746640250490,-252.584968,0.00019986,2]
[360231356,1746640250500,-151.0,0.00019986,2]
[360231357,1746640250510,-151.0,0.00019986,2]
[360231358,1746640250521,-151.0,0.00019986,2]
[360231359,1746640250531,-151.0,0.00019986,2]
[360231360,1746640250541,-151.0,0.00019986,2]
[360231361,1746640250552,-151.0,0.00019986,2]
[360231362,1746640250563,-151.0,0.00019986,2]
[360231363,1746640250573,-151.0,0.00019986,2]
[360231364,1746640250584,-151.0,0.00019986,2]
[360231365,1746640250595,-151.0,0.00019986,2]
[360231366,1746640250605,-265.290808,0.00019986,2]
[360231367,1746640250616,-265.290808,0.00019986,2]
[360231368,1746640250625,-151.0,0.00019986,2]
[360231369,1746640250635,-151.0,0.00019986,2]
[360231370,1746640250646,-151.0,0.00019986,2]
[360231371,1746640250657,-151.0,0.00019986,2]
[360231372,1746640250667,-151.0,0.00019986,2]
[360231373,1746640250677,-246.245342,0.00019986,2]
[360231374,1746640250687,-151.0,0.00019986,2]
[360231375,1746640250699,-151.0,0.00019986,2]
[360231376,1746640250710,-151.0,0.00019986,2]
[360231377,1746640250719,-151.0,0.00019986,2]
[360231378,1746640250730,-237.322018,0.00019986,2]
[360231379,1746640250744,-237.322018,0.00019986,2]
[360231380,1746640250754,-237.322018,0.00019986,2]
[360231381,1746640250764,-237.322018,0.00019986,2]
[360231382,1746640250774,-151.0,0.00019986,2]
[360231383,1746640250784,-151.0,0.00019986,2]
[360231384,1746640250794,-151.0,0.00019986,2]
[360231385,1746640250804,-151.0,0.00019986,2]
[360231386,1746640250814,-151.0,0.00019986,2]
[360231387,1746640250824,-151.0,0.00019986,2]
[360231388,1746640250834,-152.12959457,0.00019986,2]
[360231389,1746640250847,-146.71726643,0.00019986,2]
[360231390,1746640250857,-151.0,0.00019986,2]
[360231391,1746640250867,-1256.0691074,0.00019986,2]
[360231392,1746640250877,-1376.0958285,0.00019986,2]
[360231393,1746640250888,-1496.1225495,0.00019986,2]
[360231394,1746640250898,-151.0,0.00019986,2]
[360231395,1746640250909,-5313.8496131,0.00019986,2]
[360231396,1746640250921,-193.07340704,0.00019986,2]
[360231397,1746640250935,-1010.01267846,0.00019986,2]
[360231398,1746640251182,-500.0,0.00019967,2]
[360231399,1746640251193,-3418.15874295,0.00019986,2]
[360231400,1746640251207,-1194.78494255,0.00019986,2]
[360231401,1746640251217,-6318.2099288,0.00019986,2]
[360231402,1746640251227,-151.0,0.00019986,2]
[360231403,1746640251237,-76910.9443738,0.00019986,2]
[360231404,1746640251247,-63704.3554174,0.00019986,2]
[360231405,1746640251257,-4259.6859298,0.00019986,2]
[360231406,1746640251269,-693.46508302,0.00019986,2]
[360231407,1746640251282,-3996.99999943,0.00019986,2]
[360231408,1746640251295,-2088.10672665,0.00019986,2]
[360231409,1746640251313,-39459.5087221,0.00019986,2]
[360231410,1746640251323,-151.0,0.00019986,2]
[360231411,1746640251333,-369.499338,0.00019986,2]
[360231412,1746640251344,-369.499338,0.00019986,2]
[360231413,1746640251358,-221.570423,0.00019986,2]
[360231414,1746640251368,-151.0,0.00019986,2]
[360231415,1746640251381,-152.495,0.00019988,2]
[360231416,1746640251392,-150.0,0.00019988,2]
[360231417,1746640251403,-155.048,0.00019988,2]
[360231418,1746640251415,-150.0,0.00019988,2]
[360231419,1746640251424,-150.0,0.00019988,2]
[360231420,1746640251435,-157.109,0.00019988,2]
[360231421,1746640251446,-450.0,0.00019989,2]
[360231422,1746640251456,-728.91,0.00019989,2]
[360231423,1746640251465,-433.92,0.00019989,2]
[360231424,1746640251474,-450.0,0.00019989,2]
[360231425,1746640251484,-450.0,0.00019989,2]
[360231426,1746640251496,-450.0,0.00019989,2]
[360231427,1746640251507,-1370.25,0.00019989,2]
[360231428,1746640251519,-450.0,0.00019989,2]
[360231429,1746640251531,-1042.25,0.00019989,2]
[360231430,1746640251543,-3315.45,0.00019989,2]
[360231431,1746640251554,-1284.04,0.00019989,2]
[360231432,1746640251566,-928.6,0.00019989,2]
[360231433,1746640251576,-450.0,0.00019989,2]
[360231434,1746640251586,-802.68,0.00019989,2]
[360231435,1746640251604,-17582.78,0.00019989,2]
[360231436,1746640251616,-450.0,0.00019989,2]
[360231437,1746640251626,-1122.11,0.00019989,2]
[360231438,1746640251638,-279.19,0.00019989,2]
[360231439,1746640251649,-5363.79,0.00019989,2]
[360231440,1746640251659,-450.0,0.00019989,2]
[360231441,1746640251670,-450.0,0.00019989,2]
[360231442,1746640251680,-2572.63,0.00019989,2]
[360231443,1746640251691,-151.0,0.0001999,2]
[360231444,1746640251703,-159.944882,0.0001999,2]
[360231445,1746640251713,-151.0,0.0001999,2]
[360231446,1746640251724,-151.0,0.0001999,2]
[360231447,1746640251735,-151.0,0.0001999,2]
[360231448,1746640251745,-151.0,0.0001999,2]
[360231449,1746640251756,-151.0,0.0001999,2]
[360231450,1746640251769,-151.0,0.0001999,2]
[360231451,1746640251780,-252.584968,0.0001999,2]
[360231452,1746640251792,-252.584968,0.0001999,2]
[360231453,1746640251802,-158.78346518,0.0001999,2]
[360231454,1746640251813,-12500.0,0.0001999,2]
[360231455,1746640251824,-12500.0,0.0001999,2]
[360231456,1746640251835,-156.688303,0.00019994,2]
[360231457,1746640251846,-151.0,0.00019994,2]
[360231458,1746640251858,-151.0,0.00019994,2]
[360231459,1746640251869,-300.0,0.00019994,2]
[360231460,1746640251881,-151.0,0.00019994,2]
[360231461,1746640251891,-369.499338,0.00019994,2]
[360231462,1746640251902,-369.499338,0.00019994,2]
[360231463,1746640251913,-151.0,0.00019994,2]
[360231464,1746640251924,-580.27,0.00019995,2]
[360231465,1746640251937,-450.0,0.00019995,2]
[360231466,1746640251950,-450.0,0.00019995,2]
[360231467,1746640251961,-922.38,0.00019995,2]
[360231468,1746640251971,-450.0,0.00019995,2]
[360231469,1746640251982,-151.0,0.00019995,2]
[360231470,1746640251992,-151.0,0.00019995,2]
[360231471,1746640252003,-151.0,0.00019995,2]